Department Family,Entity,Date,Expenses Type,Expense Area,Supplier,Transaction Number, Total ,
Department of Health,The Christie NHS Foundation Trust,15/08/2019,Drugs,Drugs,ALCURA UK LIMITED,0000622002,96129.97,
Department of Health,The Christie NHS Foundation Trust,22/08/2019,PET Scans- July 19,Christie Medical Physics,ALLIANCE MEDICAL LTD,0000621606,211460.00,
Department of Health,The Christie NHS Foundation Trust,15/08/2019,Drugs,Christie Medical Physics,ALLIANCE MEDICAL RADIOPHARMACY LIMITED,0000617845,38699.16,
Department of Health,The Christie NHS Foundation Trust,15/08/2019,Drugs,Christie Medical Physics,ALLIANCE MEDICAL RADIOPHARMACY LIMITED,0000617903,41141.34,
Department of Health,The Christie NHS Foundation Trust,15/08/2019,Drugs,Christie Medical Physics,ALLIANCE MEDICAL RADIOPHARMACY LIMITED,0000620331,34754.10,
Department of Health,The Christie NHS Foundation Trust,01/08/2019,Print Management Contract,Corporate,APOGEE CORPORATION LTD,0000615152,60227.74,
Department of Health,The Christie NHS Foundation Trust,01/08/2019,Drugs,Drugs,BAXTER HEALTHCARE LTD,0000621183,336207.60,
Department of Health,The Christie NHS Foundation Trust,01/08/2019,Drugs,Drugs,BAXTER HEALTHCARE LTD,0000620047,515357.45,
Department of Health,The Christie NHS Foundation Trust,15/08/2019,Drugs,Drugs,BAXTER HEALTHCARE LTD,0000620439,579207.41,
Department of Health,The Christie NHS Foundation Trust,15/08/2019,Drugs,Drugs,BAXTER HEALTHCARE LTD,0000621402,354298.78,
Department of Health,The Christie NHS Foundation Trust,22/08/2019,Drugs,Drugs,BAXTER HEALTHCARE LTD,0000620943,625660.98,
Department of Health,The Christie NHS Foundation Trust,22/08/2019,Drugs,Drugs,BAXTER HEALTHCARE LTD,0000621971,597358.78,
Department of Health,The Christie NHS Foundation Trust,22/08/2019,Drugs,Drugs,BAXTER HEALTHCARE LTD,0000621972,563083.88,
Department of Health,The Christie NHS Foundation Trust,29/08/2019,Drugs,Drugs,BAXTER HEALTHCARE LTD,0000621378,162716.98,
Department of Health,The Christie NHS Foundation Trust,29/08/2019,Drugs,Drugs,BAXTER HEALTHCARE LTD,0000621380,156059.92,
Department of Health,The Christie NHS Foundation Trust,29/08/2019,Drugs,Drugs,BAXTER HEALTHCARE LTD,0000621383,147413.80,
Department of Health,The Christie NHS Foundation Trust,30/08/2019,Drugs,Drugs,BAXTER HEALTHCARE LTD,0000621973,356880.43,
Department of Health,The Christie NHS Foundation Trust,22/08/2019,Lift Development,Capital,CLASSIC LIFTS LIMITED,0000620681,26986.80,
Department of Health,The Christie NHS Foundation Trust,08/08/2019,Medical Equipment Maintenance Contract,Clinical Support & Specialist Surgery,CPP FACILITIES LLP,0000620572,210764.34,
Department of Health,The Christie NHS Foundation Trust,08/08/2019,Medical Equipment Maintenance Contract,Clinical Support & Specialist Surgery,CPP FACILITIES LLP,0000620575,-179562.08,
Department of Health,The Christie NHS Foundation Trust,08/08/2019,Drugs,Drugs,EAST CHESHIRE NHS TRUST,0000609762,76960.56,
Department of Health,The Christie NHS Foundation Trust,15/08/2019,Oncology Services Nov 18,Network Services,EAST CHESHIRE NHS TRUST,0000599996,43097.75,
Department of Health,The Christie NHS Foundation Trust,15/08/2019,Oncology Services Dec 18,Network Services,EAST CHESHIRE NHS TRUST,0000602682,43097.75,
Department of Health,The Christie NHS Foundation Trust,15/08/2019,Oncology Services Jan 19,Network Services,EAST CHESHIRE NHS TRUST,0000606639,43347.74,
Department of Health,The Christie NHS Foundation Trust,15/08/2019,Oncology Services Feb 19,Network Services,EAST CHESHIRE NHS TRUST,0000607011,43181.08,
Department of Health,The Christie NHS Foundation Trust,15/08/2019,Oncology Services Mar 19,Network Services,EAST CHESHIRE NHS TRUST,0000610434,43181.08,
Department of Health,The Christie NHS Foundation Trust,22/08/2019,Drugs,Drugs,EAST CHESHIRE NHS TRUST,0000600356,123596.76,
Department of Health,The Christie NHS Foundation Trust,22/08/2019,Drugs,Drugs,EAST CHESHIRE NHS TRUST,0000596534,105960.36,
Department of Health,The Christie NHS Foundation Trust,22/08/2019,Oncology Services Apr 19,Network Services,EAST CHESHIRE NHS TRUST,0000598387,302267.58,
Department of Health,The Christie NHS Foundation Trust,22/08/2019,Drugs,Drugs,EAST CHESHIRE NHS TRUST,0000602690,116441.94,
Department of Health,The Christie NHS Foundation Trust,22/08/2019,Drugs,Drugs,EAST CHESHIRE NHS TRUST,0000607005,91250.53,
Department of Health,The Christie NHS Foundation Trust,22/08/2019,Drugs,Drugs,EAST CHESHIRE NHS TRUST,0000615620,80628.85,
Department of Health,The Christie NHS Foundation Trust,22/08/2019,Energy Contract Jul 19,Network Services,EDF ENERGY,0000621701,42321.16,
Department of Health,The Christie NHS Foundation Trust,22/08/2019,Energy Contract Jul 19,Network Services,EDF ENERGY,0000621702,56108.64,
Department of Health,The Christie NHS Foundation Trust,22/08/2019,Energy Contract Jun 19,Network Services,EDF ENERGY,0000621689,35324.34,
Department of Health,The Christie NHS Foundation Trust,22/08/2019,Energy Contract Jun 19,Network Services,EDF ENERGY,0000621690,47890.11,
Department of Health,The Christie NHS Foundation Trust,22/08/2019,Drugs,Drugs,GILEAD SCIENCES LTD,0000621823,224360.80,
Department of Health,The Christie NHS Foundation Trust,22/08/2019,Drugs,Drugs,GILEAD SCIENCES LTD,0000621825,224360.80,
Department of Health,The Christie NHS Foundation Trust,22/08/2019,Computer Equipment,Finance & Business Development,HP INC.UK LIMITED,0000621514,51253.68,
Department of Health,The Christie NHS Foundation Trust,22/08/2019,Licences,Research & Development,IDEAGEN GAEL LTD,0000614232,27810.00,
Department of Health,The Christie NHS Foundation Trust,29/08/2019,Paterson Development,Capital,INTERSERVE CONSTRUCTION LTD,0000622089,374776.20,
Department of Health,The Christie NHS Foundation Trust,29/08/2019,Service Contract,Clinical Support & Specialist Surgery,INTUITIVE SURGICAL LTD,0000621434,130000.00,
Department of Health,The Christie NHS Foundation Trust,29/08/2019,Chemotherapy Prescribing System Jul- Sep 19,Finance & Business Development,IQ HEALTH TECH LTD,0000618611,32500.00,
Department of Health,The Christie NHS Foundation Trust,29/08/2019,Drugs,Drugs,LLOYDSPHARMACY CLINICAL HOMECARE,0000622625,44278.82,
Department of Health,The Christie NHS Foundation Trust,07/08/2019,Rates 19/20,Estates & Facilities,M/CR CITY COUNCIL (RATES) DD,0000621608,77883.00,
Department of Health,The Christie NHS Foundation Trust,30/08/2019,Clinical Nurse Apr-Jun 19,Clinical Support & Specialist Surgery,MANCHESTER UNIVERSITY NHS FT,0000618382,28211.69,
Department of Health,The Christie NHS Foundation Trust,15/08/2019,Blood Products,Network Services,NHS BLOOD AND TRANSPLANT,0000622513,172291.34,
Department of Health,The Christie NHS Foundation Trust,15/08/2019,NHS Litigation (NHSLA),Finance & Business Development,NHS LITIGATION AUTHORITY,0000623252,111326.40,
Department of Health,The Christie NHS Foundation Trust,01/08/2019,Stock for all Wards & Departments,All Wards and Departments,NHS SUPPLY CHAIN,0000619472,46074.36,
Department of Health,The Christie NHS Foundation Trust,08/08/2019,Stock for all Wards & Departments,All Wards and Departments,NHS SUPPLY CHAIN,0000620301,64293.52,
Department of Health,The Christie NHS Foundation Trust,15/08/2019,Stock for all Wards & Departments,All Wards and Departments,NHS SUPPLY CHAIN,0000620773,59575.37,
Department of Health,The Christie NHS Foundation Trust,22/08/2019,Stock for all Wards & Departments,All Wards and Departments,NHS SUPPLY CHAIN,0000621992,49426.75,
Department of Health,The Christie NHS Foundation Trust,29/08/2019,Stock for all Wards & Departments,All Wards and Departments,NHS SUPPLY CHAIN,0000621996,54924.09,
Department of Health,The Christie NHS Foundation Trust,29/08/2019,Stock for all Wards & Departments,All Wards and Departments,NHS SUPPLY CHAIN,0000622451,174520.90,
Department of Health,The Christie NHS Foundation Trust,29/08/2019,Stock for all Wards & Departments,All Wards and Departments,NHS SUPPLY CHAIN,0000614620,-31513.85,
Department of Health,The Christie NHS Foundation Trust,01/08/2019,Licences,Digital Sevices,ONE IDENTITY SOFTWARE INTERNATIONALLIMIT,0000619357,42560.00,
Department of Health,The Christie NHS Foundation Trust,30/08/2019,Macmillan Project Jun 19,Manchester Cancer,SALFORD ROYAL HOSP NHS FT,0000621488,128148.26,
Department of Health,The Christie NHS Foundation Trust,22/08/2019,Maintenance,Estates & Facilities,SCHNEIDER ELECTRIC LTD,0000621837,26135.00,
Department of Health,The Christie NHS Foundation Trust,08/08/2019,Software Licences,Finance & Business Development,SOFTCAT PLC,0000620089,25704.00,
Department of Health,The Christie NHS Foundation Trust,15/08/2019,Software Licences,Finance & Business Development,SOFTCAT PLC,0000619403,47985.70,
Department of Health,The Christie NHS Foundation Trust,29/08/2019,Proton Beam Development (PBT),Capital,SYSTEM C HEALTHCARE,0000621482,22779.00,
Department of Health,The Christie NHS Foundation Trust,29/08/2019,Carpark Development,Capital,TCLARKE CONTRACTING LTD,0000621602,64316.98,
Department of Health,The Christie NHS Foundation Trust,08/08/2019,Software Licences,Digital Sevices,TET LTD,0000618489,43844.53,
Department of Health,The Christie NHS Foundation Trust,29/08/2019,Patient Testing Service ,Network Services,THE ANTHONY NOLAN BONE MARROW,0000621103,48843.36,
Department of Health,The Christie NHS Foundation Trust,29/08/2019,Patient Testing Service ,Network Services,THE ANTHONY NOLAN BONE MARROW,0000622502,-45100.00,
Department of Health,The Christie NHS Foundation Trust,08/08/2019,Drugs,Drugs,THE CHRISTIE CLINIC (HCA),0000620194,34620.00,
Department of Health,The Christie NHS Foundation Trust,08/08/2019,Drugs,Drugs,THE CHRISTIE CLINIC (HCA),0000620300,41520.89,
Department of Health,The Christie NHS Foundation Trust,01/08/2019,Patient Testing Service ,Clinical Support & Specialist Surgery,THE CHRISTIE PATHOLOGY PARTNERSHIP LLP,0000618207,449646.20,
Department of Health,The Christie NHS Foundation Trust,01/08/2019,Patient Testing Service ,Clinical Support & Specialist Surgery,THE CHRISTIE PATHOLOGY PARTNERSHIP LLP,0000618209,-377837.20,
Department of Health,The Christie NHS Foundation Trust,08/08/2019,Patient Testing Service ,Clinical Support & Specialist Surgery,THE CHRISTIE PATHOLOGY PARTNERSHIP LLP,0000620573,443493.43,
Department of Health,The Christie NHS Foundation Trust,22/08/2019,Research Project,Research & Development,UNIVERSITY OF LEEDS,0000622171,53343.20,
Department of Health,The Christie NHS Foundation Trust,22/08/2019,Proton Beam Development (PBT),Capital,VARIAN MEDICAL SYSTEMS UK LTD,0000619594,206309.79,
Department of Health,The Christie NHS Foundation Trust,30/08/2019,Energy Contract- Jul 19,Estates & Facilities,VEOLIA ENERGY &UTILITY SERVICES UK PLC,0000621765,154163.37,
Department of Health,The Christie NHS Foundation Trust,22/08/2019,MacMillan Project Apr 19-Jun 19,Network Services,WRIGHTINGTON WIGAN AND LEIGH NHS FT,0000620262,107857.00,
